bitfinex/quotes_ETHUSD_20240926
["timestamp","ask_amount","ask_price","bid_price","bid_amount"]
[1727360972977,3.79623,2634.2,2633.5,0.7538]
[1727360973575,3.79617,2634.3,2633.5,0.7538]
[1727360973775,0.09492107,2634.2,2633.5,0.7538]
[1727360974010,3.79627,2634.2,2633.5,0.7538]
[1727360974195,0.76626671,2634.3,2633.5,0.7538]
[1727360974400,3.8666471,2634.4,2633.5,0.7538]
[1727360974614,3.79694,2633.7,2633.5,0.7538]
[1727360974974,3.0,2634.0,2632.8,0.8133]
[1727360975282,3.79809,2632.9,2632.8,0.8133]
[1727360975478,3.79809,2632.9,2631.7,3.79976]
[1727360975479,0.379809,2632.9,2631.8,0.8133]
[1727360975685,3.79865,2632.6,2631.8,0.8133]
[1727360975893,0.09497701,2632.5,2631.8,0.8133]
[1727360976125,3.79868,2632.5,2631.8,0.8133]
[1727360976328,3.79882,2632.4,2631.8,0.8133]
[1727360976513,0.75975,2632.3,2631.8,0.8133]
[1727360976815,3.79899,2632.3,2631.8,0.8133]
[1727360977013,3.79872,2632.5,2631.8,0.8133]
[1727360977579,3.79903,2632.3,2631.8,0.8133]
[1727360977815,4.18862122,2632.2,2631.8,0.8133]
[1727360978201,3.79935,2632.1,2631.8,0.8133]
[1727360978393,3.79995,2631.7,2631.3,0.7635]
[1727360978614,3.80013,2631.5,2631.3,0.7635]
[1727360979284,3.80013,2631.5,2630.4,5.34942118]
[1727360979285,3.80046,2631.3,2630.5,0.7768]
[1727360979484,3.80064,2631.2,2630.5,0.7768]
[1727360979685,3.8007,2631.1,2630.5,0.7768]
[1727360980423,3.80102,2630.9,2630.5,0.7768]
[1727360980634,3.80113,2630.8,2630.5,0.7768]
[1727360980847,3.89639585,2630.7,2630.5,0.7768]
[1727360981123,3.80202,2630.2,2629.4,0.8053]
[1727360981321,3.80171,2630.4,2629.4,0.8053]
[1727360981632,2.0,2630.7,2629.4,0.8053]
[1727360981984,3.80228,2630.0,2629.4,0.8053]
[1727360982321,3.80176,2630.4,2629.4,0.8053]
[1727360982626,1.174499,2630.8,2629.4,0.8053]
[1727360982627,3.802,2630.2,2629.4,0.8053]
[1727360982920,4.18224,2630.2,2629.4,0.8053]
[1727360983126,3.80142,2630.6,2629.6,5.34942118]
[1727360983330,3.80142,2630.6,2629.8,3.80256]
[1727360983517,3.80094,2631.0,2630.1,0.7577]
[1727360983721,3.79848,2632.7,2630.4,5.34942118]
[1727360983722,0.379974,2631.7,2630.4,5.34942118]
[1727360983920,3.80014,2631.5,2630.6,4.55909]
[1727360984121,3.80027,2631.4,2630.6,0.7577]
[1727360984729,3.79978,2631.8,2630.8,9.15044118]
[1727360984937,0.38940122,2632.2,2630.9,0.89370661]
[1727360985115,3.79984,2631.7,2630.9,0.8177]
[1727360985867,3.80003,2631.6,2630.9,0.8177]
[1727360986499,3.79984,2631.7,2630.9,0.8177]
[1727360986739,3.79959,2631.9,2630.9,4.61867]
[1727360987042,3.79968,2631.8,2631.0,0.8147]
[1727360988339,3.79958,2631.9,2631.0,0.8147]
[1727360988551,3.7998,2631.8,2631.0,0.8147]
[1727360988839,3.79924,2632.1,2631.3,0.7941]
[1727360988995,3.79924,2632.1,2631.6,0.005]
[1727360990002,3.79894,2632.4,2631.6,0.005]
[1727360990202,0.7876,2632.8,2631.7,0.7537]
[1727360990203,3.79926,2632.1,2631.7,0.7537]
[1727360990403,7.59862,2632.1,2631.6,0.005]
[1727360990635,3.79979,2631.8,2631.6,0.005]
[1727360990799,3.79982,2631.7,2631.6,0.005]
[1727360993055,3.79904,2632.3,2631.6,0.005]
[1727360993056,0.7876,2632.8,2631.6,0.005]
[1727360993207,3.79925,2632.1,2631.6,0.005]
[1727360993539,3.79955,2631.9,2631.6,0.005]
[1727360993852,3.79982,2631.7,2631.6,0.005]
[1727360994559,3.79931,2632.1,2631.6,0.005]
[1727360994896,7.59917,2631.9,2631.6,0.005]
[1727360995035,3.79955,2631.9,2631.6,0.005]
[1727360995710,3.79931,2632.1,2631.6,0.005]
[1727360995930,2.758592,2632.6,2631.6,0.005]
[1727360995931,3.79968,2631.8,2631.6,0.005]
[1727360996252,3.79982,2631.7,2631.6,0.005]
[1727360996456,3.79968,2631.8,2631.6,0.005]
[1727360996962,3.79946,2632.0,2631.6,0.005]
[1727360997261,7.59836,2632.2,2631.6,0.005]
[1727360997410,3.79914,2632.2,2631.6,0.005]
[1727360997733,3.79924,2632.1,2631.6,0.005]
[1727360998337,7.59833,2632.2,2631.6,0.005]
[1727360998538,3.79914,2632.2,2631.6,0.005]
[1727360999146,7.59835,2632.2,2631.6,0.005]
[1727360999347,0.5758592,2632.5,2631.7,0.7652]
[1727360999549,0.002245,2632.6,2631.7,0.7652]
[1727360999863,3.79944,2632.0,2631.7,0.7652]
[1727361000168,7.59838,2632.2,2631.7,0.7652]
[1727361000370,3.800865,2632.6,2631.9,3.79951]
[1727361000582,3.800865,2632.6,2631.6,5.35442118]
[1727361000583,0.002245,2632.6,2632.1,0.8246]
[1727361000879,0.002245,2632.6,2632.5,0.8246]
[1727361001232,3.79919,2632.2,2631.7,0.8285]
[1727361001667,0.09722451,2632.6,2631.7,0.8285]
[1727361001668,3.79891,2632.4,2631.7,0.8285]
[1727361001873,3.89578718,2632.6,2631.7,0.8285]
[1727361001874,7.59863,2632.1,2631.7,0.8285]
[1727361002172,3.79927,2632.1,2631.7,0.8285]
[1727361002469,3.79924,2632.1,2631.7,0.8285]
[1727361002668,3.79906,2632.3,2631.7,0.8285]
[1727361002972,3.79879,2632.5,2631.7,4.6282]
[1727361003184,3.800855,2632.6,2631.8,0.7897]
[1727361003476,3.79903,2632.3,2631.8,0.7897]
[1727361003676,3.79879,2632.5,2631.8,4.58936]
[1727361003831,3.7994,2632.0,2631.8,0.7897]
[1727361004035,3.800835,2632.6,2631.8,4.58927]
[1727361004266,3.800835,2632.6,2631.6,3.80488]
[1727361004267,0.002245,2632.6,2632.0,0.7525]
[1727361004887,0.002245,2632.6,2631.6,0.7969]
[1727361004888,3.79982,2631.7,2631.6,0.7969]
[1727361005038,3.79982,2631.7,2631.6,0.005]
[1727361005744,3.79905,2632.3,2631.7,0.7826]
[1727361005931,3.79873,2632.5,2631.7,0.7826]
[1727361006151,3.79784,2633.1,2631.9,5.34942118]
[1727361006355,3.79784,2633.1,2632.3,9.14835118]
[1727361006595,3.79784,2633.1,2632.4,0.89946105]
[1727361006760,3.79754,2633.3,2632.4,0.89946105]
[1727361006761,3.79754,2633.3,2632.5,0.8235]
[1727361007169,3.79754,2633.3,2632.5,4.62217]
[1727361007364,3.79777,2633.2,2632.5,0.8235]
[1727361007561,3.8576718,2633.9,2632.5,0.8235]
[1727361007562,3.79731,2633.5,2632.7,3.79836]
[1727361007790,0.0609118,2633.9,2632.6,0.7966]
[1727361007791,3.7976,2633.3,2632.6,0.7966]
[1727361008511,3.8576018,2633.9,2632.0,3.79935]
[1727361008512,3.79706,2633.7,2633.3,0.7917]
[1727361008681,0.0609118,2633.9,2633.3,0.7917]
[1727361008995,3.79733,2633.5,2633.3,0.7917]
[1727361009197,3.79737,2633.4,2633.3,0.7917]
[1727361009757,0.379733,2633.5,2632.6,0.8052]
[1727361010017,3.79803,2633.0,2632.6,0.8052]
[1727361010306,5.0,2633.8,2632.6,0.8052]
[1727361010307,3.79838,2632.7,2632.6,0.8052]
[1727361010995,7.59637,2632.9,2632.2,0.7725]
[1727361011199,3.79817,2632.9,2632.2,0.7725]
[1727361011493,3.79833,2632.8,2632.2,0.7725]
[1727361011864,4.37709,2633.3,2632.6,0.7832]
[1727361011865,3.7976,2633.3,2632.6,0.7832]
[1727361012200,3.79698,2633.7,2632.9,5.34942118]
[1727361012498,3.79713,2633.6,2632.9,5.34942118]
[1727361012678,3.79723,2633.5,2632.9,5.34942118]
[1727361012853,3.79753,2633.3,2632.9,5.34942118]
[1727361013056,3.79723,2633.5,2632.9,5.34942118]
[1727361013257,3.8576018,2633.9,2632.9,5.34942118]
[1727361013258,3.79686,2633.8,2632.9,5.34942118]
[1727361013486,3.79733,2633.5,2632.9,5.34942118]
[1727361013811,3.79718,2633.6,2632.9,5.34942118]
[1727361014092,3.79718,2633.6,2632.6,0.7832]
[1727361014093,3.79779,2633.2,2632.6,0.7832]
[1727361014401,0.09494718,2633.1,2632.6,0.7832]
[1727361014596,3.79838,2632.7,2632.6,0.7832]
[1727361015098,3.79824,2632.8,2632.6,0.7832]
[1727361015299,4.55723,2633.2,2632.6,0.7832]
[1727361015300,3.79774,2633.2,2632.6,0.7832]
[1727361015469,3.79774,2633.2,2632.7,0.05663623]
[1727361015668,3.7976,2633.3,2632.6,4.58171]
[1727361015870,3.7974,2633.4,2632.6,0.7832]
[1727361015871,3.79766,2633.2,2632.6,0.7832]
[1727361016069,3.79692,2633.8,2633.0,0.8066]
[1727361016299,3.79692,2633.8,2633.3,5.34942118]
[1727361016511,0.0609118,2633.9,2633.0,0.8066]
[1727361016512,0.15583289,2633.9,2633.0,0.8066]
[1727361016665,3.79754,2633.3,2633.0,0.8066]
[1727361016860,3.79719,2633.6,2633.0,0.8066]
[1727361017062,3.797,2633.7,2633.0,0.8066]
[1727361017368,7.5941,2633.7,2633.0,0.8066]
[1727361017576,3.79717,2633.6,2633.0,0.8066]
[1727361017907,0.0609118,2633.9,2633.0,0.8066]
[1727361017908,3.79683,2633.8,2633.1,3.79776]
[1727361018059,0.0609118,2633.9,2633.3,5.34942118]
[1727361018494,3.79701,2633.7,2633.3,5.34942118]
[1727361018870,3.79701,2633.7,2633.2,0.8124]
[1727361018871,3.79731,2633.5,2633.2,0.8124]
[1727361019057,3.79751,2633.3,2633.2,0.8124]
[1727361019457,3.79723,2633.5,2633.2,0.8124]
[1727361019787,0.0609118,2633.9,2633.3,5.34942118]
[1727361019959,0.0609118,2633.9,2633.3,12.94420118]
[1727361020163,0.0609118,2633.9,2633.3,9.14680118]
[1727361020358,0.0609118,2633.9,2633.7,5.34942118]
[1727361020661,0.0609118,2633.9,2633.8,0.7509]
[1727361021194,0.0609118,2633.9,2633.8,4.54769]
[1727361021508,0.0609118,2633.9,2633.8,5.09769]
[1727361023009,0.0609118,2633.9,2633.8,4.54769]
[1727361023295,0.0609118,2633.9,2633.8,0.7509]
[1727361024006,0.0609118,2633.9,2633.8,4.54769]
[1727361024158,3.79499,2635.1,2634.2,3.79613]
[1727361024361,3.79536,2634.8,2634.6,0.8219]
[1727361024563,0.0609118,2635.2,2634.6,0.8219]
[1727361025064,3.7958,2634.5,2634.2,0.8219]
[1727361025558,7.59206,2634.4,2634.2,0.8219]
[1727361025756,3.79607,2634.3,2634.2,0.8219]
[1727361025957,3.79578,2634.5,2634.2,0.8219]
[1727361026160,3.79573,2634.6,2634.2,0.8219]
[1727361026161,3.79572,2634.6,2634.2,0.8219]
[1727361026399,3.79588,2634.5,2634.2,0.8219]
[1727361026607,3.79572,2634.6,2634.2,0.8219]
[1727361026787,3.79594,2634.4,2634.2,0.8219]
[1727361026971,3.79618,2634.3,2633.7,5.34942118]
[1727361027305,2.0,2635.1,2634.2,0.8075]
[1727361027306,0.3525801,2635.1,2634.2,0.8075]
[1727361027602,3.79539,2634.8,2634.2,4.60362]
[1727361027805,3.79539,2634.8,2634.2,0.8075]
[1727361028164,3.79551,2634.7,2634.2,0.8075]
[1727361028386,3.79596,2634.4,2634.2,0.8075]
[1727361028709,3.79607,2634.3,2634.2,0.8075]
[1727361028910,3.79596,2634.4,2634.2,0.8075]
[1727361029314,3.79521,2634.9,2634.2,0.8075]
[1727361029619,3.79521,2634.9,2634.5,5.34942118]
[1727361029939,3.79536,2634.8,2634.5,5.34942118]
[1727361030413,7.59,2635.1,2634.5,5.34942118]
[1727361030615,3.79494,2635.1,2634.5,5.34942118]
[1727361030816,3.79509,2635.0,2634.6,0.7643]
[1727361030988,3.79521,2634.9,2634.6,0.7643]
[1727361031311,3.79501,2635.1,2634.6,0.7643]
[1727361031519,0.01265105,2635.2,2634.7,3.87138744]
[1727361031684,0.01265105,2635.2,2634.9,5.34942118]
[1727361031885,0.01265105,2635.2,2635.0,0.0758934]
[1727361032214,0.01265105,2635.2,2634.6,0.7643]
[1727361032377,0.01265105,2635.2,2634.9,5.34942118]
[1727361033342,0.01265105,2635.2,2635.0,0.8195]
[1727361034517,3.80757105,2635.2,2635.0,0.8195]
[1727361034672,0.39340816,2635.2,2634.6,0.7989]
[1727361034881,3.7953,2634.9,2634.6,0.7989]
[1727361035078,0.01265105,2635.2,2634.6,0.7989]
[1727361035273,3.7958,2634.5,2634.2,0.7775]
[1727361035923,3.89016892,2634.9,2633.8,0.7676]
[1727361035924,3.7963,2634.2,2633.8,0.7676]
[1727361036079,7.59265,2634.2,2633.8,0.7676]
[1727361036296,3.7963,2634.2,2633.8,0.7676]
[1727361036492,3.79555,2634.7,2633.8,0.7676]
[1727361036493,3.79665,2633.9,2633.8,0.7676]
[1727361036797,3.79646,2634.1,2633.4,4.62706]
[1727361037110,7.59345,2633.9,2633.4,0.8297]
[1727361037608,3.79668,2633.9,2633.4,0.8297]
[1727361037794,3.79701,2633.7,2633.4,0.8297]
[1727361037992,3.79626,2634.2,2633.4,0.8297]
[1727361038303,3.79682,2633.8,2633.4,0.8297]
[1727361038496,3.79682,2633.8,2633.3,5.34942118]
[1727361038497,3.79711,2633.6,2633.3,5.34942118]
[1727361038696,4.55029,2633.9,2633.1,0.766]
[1727361038891,3.79751,2633.3,2632.6,0.766]
[1727361039144,7.59513,2633.3,2632.6,4.56444]
[1727361039298,3.79794,2633.1,2632.6,0.766]
[1727361039498,3.79757,2633.3,2632.6,4.56439]
[1727361039727,7.59519,2633.3,2632.6,4.56439]
[1727361039908,3.79729,2633.5,2632.9,9.14748118]
[1727361040115,3.79697,2633.7,2633.0,3.79793]
[1727361040116,7.59402,2633.7,2633.0,3.79793]
[1727361040354,6.79647,2634.1,2632.1,3.79918]
[1727361040355,3.79644,2634.1,2633.4,3.79727]
[1727361040504,3.79662,2634.0,2633.3,9.14682118]
[1727361040843,3.79624,2634.2,2633.6,3.79707]
[1727361041030,3.79614,2634.3,2633.7,9.91193118]
[1727361041414,3.79581,2634.5,2633.7,6.11512118]
[1727361041415,3.79665,2634.0,2633.7,6.11512118]
[1727361041618,3.89073999,2634.5,2633.7,6.11512118]
[1727361041619,3.79679,2633.8,2633.7,0.7657]
[1727361041830,3.79679,2633.8,2633.3,5.34942118]
[1727361041831,3.7969,2633.8,2633.4,0.7724]
[1727361042240,0.389074,2634.4,2633.4,0.7724]
[1727361042241,3.79711,2633.6,2633.4,0.7724]
[1727361042756,3.79711,2633.6,2633.3,5.34942118]
[1727361042958,3.79737,2633.4,2633.3,5.34942118]
[1727361043166,3.79737,2633.4,2633.1,0.8082]
[1727361043467,3.79814,2632.9,2632.6,0.8082]
[1727361043823,3.79804,2633.0,2632.6,0.8082]
[1727361043824,3.79824,2632.8,2632.6,0.8082]
[1727361044019,3.79801,2633.0,2632.6,0.8082]
[1727361044528,3.79774,2633.2,2632.6,0.8082]
[1727361044759,3.79774,2633.2,2632.7,0.07595883]
[1727361045118,3.79774,2633.2,2632.6,0.8082]
[1727361045321,3.79774,2633.2,2632.7,0.07595476]
[1727361045521,3.79788,2633.1,2632.7,0.07595473]
[1727361045954,3.79617,2634.3,2632.6,0.8082]
[1727361045955,3.0,2634.0,2632.9,5.34942118]
[1727361046130,3.79673,2633.9,2633.3,5.34942118]
[1727361046447,3.79667,2633.9,2633.3,5.34942118]
[1727361046647,3.79695,2633.7,2633.3,5.34942118]
[1727361046970,4.185054,2634.4,2633.5,0.8193]
[1727361046971,3.79652,2634.0,2633.5,0.8193]
[1727361047260,3.79631,2634.2,2633.7,5.34942118]
[1727361047504,3.79601,2634.4,2633.8,3.79679]
[1727361047756,3.79629,2634.2,2633.7,5.34942118]
[1727361048329,3.79623,2634.2,2633.8,0.778]
[1727361048726,3.79581,2634.5,2633.8,0.778]
[1727361048965,3.79665,2633.9,2633.4,0.778]
[1727361049135,3.79672,2633.9,2633.4,4.57536]
[1727361049339,3.7965,2634.0,2633.4,4.57528]
[1727361049534,3.79667,2633.9,2633.4,4.57528]
[1727361049748,3.7965,2634.0,2633.4,8.37257]
[1727361049926,7.59263,2634.2,2633.7,5.34942118]
[1727361050125,3.79629,2634.2,2633.7,5.34942118]
[1727361050334,3.79651,2634.0,2633.7,5.34942118]
[1727361050536,3.79651,2634.0,2633.4,4.57528]
[1727361050537,3.7685,2634.3,2633.4,0.778]
[1727361050772,3.79714,2633.6,2633.4,0.778]
[1727361051059,3.7685,2634.3,2633.4,0.778]
[1727361051060,3.7968,2633.8,2633.4,0.778]
[1727361051282,3.79653,2634.0,2633.7,5.34942118]
[1727361051477,3.79668,2633.9,2633.7,5.34942118]
[1727361051648,3.79679,2633.8,2633.4,0.778]
[1727361052584,3.0,2634.3,2633.4,0.778]
[1727361052585,3.79666,2633.9,2633.4,0.778]
[1727361052876,3.79664,2634.0,2633.4,4.57528]
[1727361053045,3.79669,2633.9,2633.4,4.57528]
[1727361053246,3.79694,2633.7,2633.4,0.778]
[1727361053677,0.79,2634.0,2632.9,6.13792118]
[1727361053974,3.79745,2633.4,2632.9,6.13792118]
[1727361054292,3.7973,2633.5,2632.9,6.13792118]
[1727361054581,3.79773,2633.2,2632.9,6.13792118]
[1727361055281,0.458638,2633.9,2632.6,0.7898]
[1727361055282,3.79794,2633.0,2632.6,0.7898]
[1727361055448,3.79824,2632.8,2632.6,0.7898]
[1727361055635,3.79794,2633.0,2632.6,0.7898]
[1727361056184,3.79688,2633.8,2632.9,5.34942118]
[1727361056476,3.79788,2633.1,2632.9,5.34942118]
[1727361056775,3.79776,2633.2,2632.9,5.34942118]
[1727361056936,3.79776,2633.2,2632.6,4.58829]
[1727361057132,7.59514,2633.3,2632.6,0.7898]
[1727361057382,3.79767,2633.2,2632.6,4.58822]
[1727361057546,3.79767,2633.2,2632.7,3.79837]
[1727361058467,0.7952,2633.7,2632.7,3.79838]
[1727361058672,3.7971,2633.6,2632.6,0.7898]
[1727361058983,3.79816,2632.9,2632.6,0.7898]
[1727361059438,3.79788,2633.1,2632.6,4.58831]
[1727361059637,4.25633,2633.6,2632.6,0.7898]
[1727361059638,3.79802,2633.0,2632.6,0.7898]
[1727361059837,3.7983,2632.8,2632.6,0.7898]
[1727361060076,3.79802,2633.0,2632.6,0.7898]
[1727361060384,0.0949467,2633.1,2632.3,0.7783]
[1727361060552,3.79895,2632.3,2632.2,0.01362335]
[1727361061485,4.62745,2632.3,2632.2,0.01362335]
[1727361061978,5.470078,2632.3,2632.2,0.01362335]
[1727361062277,5.56506115,2632.3,2632.2,0.01362335]
[1727361062512,5.470078,2632.3,2632.2,0.01362335]
[1727361062650,8.434678,2632.3,2632.2,0.01362335]
[1727361065079,8.984678,2632.3,2632.2,0.01362335]
[1727361065789,6.37652,2631.7,2631.6,0.005]
[1727361065943,9.37652,2631.7,2631.6,0.005]
[1727361066317,9.37652,2631.7,2630.1,0.7905]
[1727361066318,7.37724,2631.2,2630.1,0.7905]
[1727361067303,7.37724,2631.2,2630.0,0.0518042]
[1727361067304,4.59543,2630.1,2630.0,0.0518042]
[1727361067529,3.80213,2630.1,2630.0,0.0518042]
[1727361067991,3.89719299,2630.1,2630.0,0.0518042]
[1727361068317,3.80213,2630.1,2630.0,0.0518042]
[1727361069017,3.80173,2630.4,2630.0,0.0518042]
[1727361069220,0.7933,2630.8,2630.0,0.8133042]
[1727361069377,3.80198,2630.3,2630.0,0.8133042]
[1727361069579,3.80202,2630.2,2630.0,0.8133042]
[1727361070200,3.80213,2630.1,2630.0,0.0518042]
[1727361070723,3.80213,2630.1,2629.4,0.005]
[1727361070724,3.803,2629.5,2629.4,0.005]
[1727361070932,3.8029,2629.6,2629.4,0.005]
[1727361071214,3.803,2629.5,2629.4,0.005]
[1727361071876,3.80286,2629.6,2629.4,0.005]
[1727361072073,3.8026,2629.8,2629.4,0.005]
[1727361072429,3.80232,2630.0,2629.4,0.005]
[1727361072713,7.60474,2630.0,2629.5,0.7557]
[1727361072919,3.8028,2629.7,2629.5,0.7557]
[1727361073410,7.60564,2629.7,2629.5,0.7557]
[1727361073612,3.8019,2630.3,2629.4,0.005]
[1727361073613,3.80285,2629.6,2629.4,0.005]
[1727361074019,3.803,2629.5,2629.4,0.005]
[1727361074223,3.80285,2629.6,2629.4,0.005]
[1727361074626,3.803,2629.5,2629.4,0.005]
[1727361075688,3.80265,2629.8,2629.4,0.005]
[1727361075914,3.803,2629.5,2629.4,0.005]
[1727361076114,3.80286,2629.6,2629.4,0.005]
[1727361076822,3.80254,2629.9,2629.4,0.005]
[1727361077030,3.80286,2629.6,2629.4,0.005]
[1727361077212,3.803,2629.5,2629.4,0.005]
[1727361077415,7.67687102,2629.5,2629.4,0.005]
[1727361077620,7.5818,2629.5,2629.4,0.005]
[1727361077791,7.67691347,2629.5,2629.4,0.005]
[1727361077987,8.1318,2629.5,2629.4,0.005]
[1727361078214,10.14891203,2629.5,2629.4,0.005]
[1727361078413,9.59891203,2629.5,2629.4,0.005]
[1727361079733,9.59891203,2629.5,2628.9,0.0518042]
[1727361079734,9.63382,2629.0,2628.9,0.0518042]
[1727361080796,7.63382,2629.0,2628.9,0.0518042]
[1727361080991,8.777561,2629.0,2628.9,0.0518042]
[1727361081333,10.777561,2629.0,2628.9,0.0518042]
[1727361084207,11.327561,2629.0,2628.9,0.0518042]
[1727361084712,12.22401787,2629.0,2628.9,0.0518042]
[1727361085386,11.8343141,2629.0,2628.9,0.0518042]
[1727361085776,12.22393073,2629.0,2628.9,0.0518042]
[1727361086995,12.22393073,2629.0,2628.5,0.005]
[1727361086996,2.0,2628.6,2628.5,0.005]
[1727361087197,2.0,2628.6,2627.9,0.0518042]
[1727361087198,8.80517,2628.0,2627.9,0.0518042]
[1727361088092,9.58407,2628.0,2627.9,0.0518042]
[1727361088452,7.58407,2628.0,2627.9,0.0518042]
[1727361088681,7.58407,2628.0,2626.8,0.0518042]
[1727361088682,3.80595,2627.5,2627.2,0.0643572]
[1727361088879,3.80595,2627.5,2627.3,0.05816339]
[1727361089197,3.7789,2628.3,2627.4,0.7808]
[1727361089368,7.61081,2627.9,2627.4,0.7808]
[1727361089570,3.80554,2627.8,2627.4,0.7808]
[1727361089794,3.80554,2627.8,2627.5,0.05803336]
[1727361090102,3.80533,2627.9,2627.5,0.05803336]
[1727361090264,3.80519,2628.0,2627.5,0.05803336]
[1727361091090,3.80546,2627.9,2627.5,0.05803336]
[1727361091399,3.80541,2627.9,2627.5,0.05803336]
[1727361091698,3.80512,2628.1,2627.5,0.05803336]
[1727361091997,7.61028,2628.1,2627.5,0.13414178]
[1727361092195,3.80518,2628.0,2627.5,0.05803336]
[1727361092366,3.80532,2627.9,2627.5,0.05803336]
[1727361092561,3.80512,2628.1,2627.5,0.05803336]
[1727361093479,7.61023,2628.1,2627.5,0.05803336]
[1727361093678,3.80511,2628.1,2627.5,0.05803336]
[1727361093877,2.8291,2628.6,2627.5,0.05803336]
[1727361094083,3.0,2628.8,2627.6,0.784]
[1727361094084,3.80478,2628.3,2627.6,0.784]
[1727361094298,3.80454,2628.5,2627.7,3.93883039]
[1727361094504,3.80421,2628.7,2627.8,4.58932]
[1727361094801,3.80368,2629.1,2628.4,3.80452]
[1727361095009,3.80366,2629.1,2628.4,3.8045]
[1727361095193,0.8148,2629.7,2628.9,3.80386]
[1727361095194,3.80281,2629.7,2628.9,3.80386]
[1727361095370,3.80281,2629.7,2629.0,0.7643]
[1727361095570,3.803,2629.5,2629.0,0.7643]
[1727361095764,3.80334,2629.3,2629.0,0.7643]
[1727361096077,3.80279,2629.7,2629.0,0.7643]
[1727361096282,3.80309,2629.5,2629.0,0.7643]
[1727361096480,4.12941345,2630.0,2629.0,4.56792]
[1727361096481,3.80265,2629.8,2629.0,4.56792]
[1727361096811,0.50043453,2630.1,2629.0,4.56792]
[1727361096812,3.8025,2629.9,2629.0,4.56792]
[1727361096970,3.8025,2629.9,2629.2,3.80341]
[1727361097171,3.80262,2629.8,2629.0,8.37155]
[1727361097569,3.8025,2629.9,2629.1,3.80347]
[1727361097766,0.39454107,2630.0,2629.3,0.7557]
[1727361097967,0.39454107,2630.0,2629.4,3.80313]
[1727361098177,0.39454107,2630.0,2629.3,0.7557]
[1727361098178,3.80244,2629.9,2629.3,0.7557]
[1727361098375,3.80259,2629.8,2629.3,0.7557]
[1727361098616,0.09506385,2629.9,2629.3,0.7557]
[1727361098777,3.80314,2629.4,2629.3,0.7557]
[1727361098973,4.19686107,2630.0,2628.6,3.8167962]
[1727361098974,3.80361,2629.1,2628.7,0.8177]
[1727361099215,3.89757243,2629.9,2628.7,0.8177]
[1727361099216,3.80324,2629.4,2628.7,0.8177]
[1727361099509,7.60651,2629.4,2628.7,0.8177]
[1727361099915,3.80324,2629.4,2628.7,0.8177]
[1727361100222,3.80292,2629.6,2628.9,3.80375]
[1727361100510,3.80292,2629.6,2628.8,4.60061]
[1727361100983,3.89816736,2629.5,2628.8,0.7967]
[1727361101316,7.60739,2629.1,2628.8,0.7967]
[1727361101473,3.80369,2629.1,2628.8,0.7967]
[1727361102088,3.80416,2628.7,2628.6,0.0125762]
[1727361102310,3.80414,2628.8,2628.6,0.0125762]
[1727361102516,3.80416,2628.7,2628.6,0.0125762]
[1727361102824,3.7721,2629.6,2628.6,0.0125762]
[1727361103003,3.80291,2629.6,2628.8,0.8198]
[1727361103177,3.80328,2629.4,2628.8,0.8198]
[1727361103377,3.80304,2629.5,2628.8,4.6238]
[1727361103579,1.47877411,2629.9,2628.8,0.8198]
[1727361103779,3.80308,2629.5,2628.8,4.62372]
[1727361103982,3.80308,2629.5,2628.9,3.80385]
[1727361104523,0.09508026,2629.6,2628.8,0.8198]
[1727361104823,7.60649,2629.4,2628.8,0.8198]
[1727361105030,3.80332,2629.3,2628.8,0.8198]
[1727361105232,3.80345,2629.2,2628.8,0.5698]
[1727361105525,7.607,2629.2,2628.8,0.5698]
[1727361105679,3.8031,2629.5,2628.8,0.5698]
[1727361105885,3.8031,2629.5,2628.6,0.0125762]
[1727361105886,3.80349,2629.2,2628.6,0.0125762]
[1727361106124,3.71181241,2629.6,2628.6,0.0125762]
[1727361106422,3.80416,2628.7,2628.6,0.0125762]
[1727361107095,4.564979,2628.7,2628.6,0.0125762]
[1727361108079,9.564979,2628.7,2628.6,0.0125762]
[1727361108284,7.564979,2628.7,2628.6,0.0125762]
[1727361109581,8.13488494,2628.7,2628.6,0.0125762]
[1727361109786,8.03975769,2628.7,2628.6,0.0125762]
[1727361110111,11.40945769,2628.7,2628.6,0.0125762]
[1727361110426,11.24842311,2628.7,2628.6,0.0125762]
[1727361110585,5.09863869,2628.7,2628.6,0.0125762]
[1727361110795,3.80403,2628.8,2628.6,0.0125762]
[1727361111112,4.57151,2629.1,2628.6,0.0125762]
[1727361111113,3.80416,2628.7,2628.6,0.0125762]
[1727361111737,3.80402,2628.8,2628.6,0.0125762]
[1727361111905,7.60813,2628.8,2628.6,0.0125762]
[1727361112098,7.60815,2628.8,2628.6,0.0125762]
[1727361112300,3.80402,2628.8,2628.6,0.0125762]
[1727361112634,7.60706,2629.2,2628.6,0.0125762]
[1727361112799,0.3946293,2629.1,2628.6,0.0125762]
[1727361112995,0.3946293,2629.1,2628.6,0.08865317]
[1727361113197,0.71181241,2629.6,2628.7,0.8144]
[1727361113198,3.80293,2629.6,2628.7,0.8144]
[1727361113409,3.8031,2629.5,2628.8,3.804]
[1727361113616,0.39464626,2629.6,2628.7,0.8144]
[1727361113798,3.80352,2629.2,2628.7,0.8144]
[1727361113999,3.80367,2629.1,2628.7,0.8144]
[1727361114235,3.80363,2629.1,2628.7,0.8144]
[1727361115539,3.80375,2629.0,2628.7,0.8144]
[1727361115907,3.80396,2628.9,2628.7,0.8144]
[1727361116750,3.80396,2628.9,2628.6,0.0125762]
[1727361117245,3.80335,2629.3,2628.6,0.0125762]
[1727361117448,3.0,2629.4,2628.6,0.0125762]
[1727361117613,2.0,2630.0,2628.7,9.91839118]
[1727361117956,4.63187,2630.5,2629.0,3.80371]